Cogmind - Beta 16 @@@ ROGUE MODE // 2026.02.01 @ 00:31:18 Player: +Jones Result: Destroyed by D-53 Grenadier with Mini Grenade Launcher Performance ------------- Evolutions (0) 0 Regions Visited (2) 400 Robots Destroyed (32) 160 Value Destroyed (564) 564 Prototype IDs (0) 0 Alien Tech Used (0) 0 Bonus (-83) -83 TOTAL SCORE: 1041 Bonus ------- Friendly Fire -83 Cogmind --------- Core Integrity 0/250 Matter 192/300 Energy 265/265 System Corruption 1% Temperature Cool (0) Movement Treading (240) Ox1 Location -10/Mines Parts ------- > --- POWER (1) -------- Improved Ion Engine > --- PROPULSION (2) --- Light Treads > --- UTILITY (2) ------ Large Storage Unit > --- WEAPON (2) ------- Heavy Assault Rifle Heavy Assault Rifle > --- INVENTORY (15) --- Light Treads Light Treads High-capacity Storage Unit Huge Storage Unit Large Matter Pod (57) Improved Terrain Scanner Seismic Detector Hacking Suite Heavy Assault Rifle Grenade Launcher Rocket Launcher Datajack Mining Laser Plasma Cutter Peak State ------------ > --- POWER ------------ Improved Ion Engine > --- PROPULSION ------- Light Treads Light Treads > --- UTILITY ---------- Large Storage Unit Seismic Detector > --- WEAPON ----------- Heavy Assault Rifle Heavy Assault Rifle > --- INVENTORY -------- Light Treads High-capacity Storage Unit Huge Storage Unit Large Matter Pod Improved Terrain Scanner Seismic Detector Light Assault Rifle Heavy Assault Rifle Heavy Assault Rifle Grenade Launcher Rocket Launcher Datajack Mining Laser Plasma Cutter [Rating: 12] Favorites ----------- Power Improved Ion Engine Engine Improved Ion Engine Propulsion Light Treads Treads Light Treads Utility Seismic Detector Device Seismic Detector Storage Large Storage Unit Weapon Heavy Assault Rifle Energy Gun Medium Laser Energy Cannon Beam Cannon Ballistic Gun Heavy Assault Rifle Launcher Rocket Launcher Special Weapon Mining Laser Build | -11 -10 -10 ------- Run | Yrd Mat Min Slots Evolved . | . . . Power . | . . . Propulsion . | . . . Utility . | . . . Weapon . | . . . Parts Attached 19 | 8 10 1 Power 3 | 1 2 . Engine 3 | 1 2 . Core . | . . . Reactor . | . . . Propulsion 2 | 2 . . Treads 2 | 2 . . Leg . | . . . Wheel . | . . . Hover . | . . . Flight . | . . . Utility 3 | 2 1 . Device 1 | 1 . . Storage 2 | 1 1 . Processor . | . . . Hackware . | . . . Protection . | . . . Artifact . | . . . Weapon 11 | 3 7 1 Energy Gun 1 | 1 . . Energy Cannon 2 | . 2 . Ballistic Gun 5 | 2 2 1 Ballistic Cannon . | . . . Launcher 2 | . 2 . Special Weapon 1 | . 1 . Impact Weapon . | . . . Slashing Weapon . | . . . Piercing Weapon . | . . . Special Melee Weapon . | . . . Unidentified Prototypes . | . . . Parts Lost 4 | . 2 2 Power 1 | . 1 . Propulsion . | . . . Utility 1 | . . 1 Weapon 2 | . 1 1 Highest Loss Streak 2 | . 1 2 To Critical Strikes . | . . . Average Backups 9 | 1 9 14 Power . | . . . Propulsion . | . . 2 Utility 3 | . 3 6 Weapon 4 | . 4 4 Tool/Special . | . . . Unused Backups 12 | . 1 11 Power . | . . . Propulsion 2 | . . 2 Utility 6 | . . 6 Weapon 2 | . 1 1 Tool/Special 2 | . . 2 Average Slot Usage (%) 95 | . 95 98 Engine 10 | . 9 14 Treads 27 | . 28 27 Device 13 | . 14 13 Storage 14 | . 14 14 Energy Gun 5 | . 6 . Energy Cannon 1 | . 1 . Ballistic Gun 17 | . 15 28 Special Weapon 2 | . 3 . Peak Build Rating 12 | 7 12 12 Average Rating 8 | 5 8 11 On Entrance 6 | . 7 12 Avg Prop Armor Cover (%) . | . . . Naked Turns . | . . . Heaviest Build 34 | 15 34 34 Greatest Support 40 | 40 40 40 Greatest Overweight (x) . | . . . Average Overweight (x) . | . . . Largest Inventory Capacity 15 | 8 15 15 Average Capacity 12 | 7 12 15 Most Carried 15 | 4 15 15 Average Carried 9 | 1 9 14 Final Capacity 15 | 8 15 15 Final Carried 15 | 4 15 14 Class Distribution -------------------- 100% | Mutant Dominant Class ---------------- Mutant | -10/Materials Mutant | -10/Mines Resources | -11 -10 -10 ----------- Run | Yrd Mat Min Matter Collected 807 | 331 425 51 Remotely . | . . . Salvage Created 1009 | 231 642 136 Parts 78 | 20 49 9 Haulers Intercepted 2 | . 2 . Recyclers Shooed 1 | . 1 . Parts Field Recycled . | . . . Retrieved Matter . | . . . Parts Self-Destructed . | . . . Prevented . | . . . Parts Restored . | . . . Kills | -11 -10 -10 ------- Run | Yrd Mat Min Combat Hostiles Destroyed 20 | . 13 7 Guns 13 | . 6 7 Cannons 1 | . 1 . AOE 6 | . 6 . Classes Destroyed 10 | 3 5 2 Worker 3 | 2 1 . Builder 1 | . . 1 Tunneler 6 | 6 . . Hauler 2 | . 2 . Recycler 2 | 1 1 . Operator 1 | . 1 . Watcher 1 | . 1 . Swarmer 6 | . 3 3 Grunt 10 | . 10 . Assembled 4 | . . 4 Best Kill Streak 5 | 3 5 5 Combat Bots Only 5 | . 5 4 Max Kills in Single Turn 2 | 2 2 2 Gunslinging 1 | . . 1 Exploded 2 | . 2 . Melee . | . . . Uniques/NPCs Destroyed . | . . . Combat | -11 -10 -10 -------- Run | Yrd Mat Min Hostile Shots Fired 56 | . 29 27 Missed 13 | . 9 4 Hits 43 | . 20 23 Melee 1 | . . 1 Projectile 42 | . 20 22 AOE 12 | . . 12 Damage Taken 971 | . 380 591 Core 264 | . 48 216 Absorbed by Shields . | . . . Core Remaining (%) 100 | 100 . . Volleys Fired 99 | 17 60 22 Largest 2 | 2 2 2 Hottest 120 | 70 120 46 Shots Fired 178 | 34 100 44 Gun 148 | 34 70 44 Cannon 10 | . 10 . Launcher 6 | . 6 . Special 14 | . 14 . Kinetic 109 | 17 48 44 Thermal 63 | 17 46 . Explosive 6 | . 6 . Electromagnetic . | . . . Robot Hit Streak 11 | 3 9 11 Robot Miss Streak 6 | 3 6 4 Penetration Max . | . . . Secondary Targets 2 | . . 2 Max Gunslinging Chain 1 | . . 1 Shots Hit Robots 92 | 16 48 28 Core Hits 56 | 10 30 16 Critical Kills . | . . . Critical Parts Destroyed . | . . . Critical Strikes 2 | 1 1 . Burn 2 | 1 1 . Melee Attacks . | . . . Impact . | . . . Slashing . | . . . Piercing . | . . . Sneak Attacks . | . . . Combat Hostiles . | . . . Follow-up Attacks . | . . . Damage Inflicted 1684 | 227 1082 375 Guns 1228 | 227 626 375 Cannons 36 | . 36 . Explosions 420 | . 420 . Melee . | . . . Ramming . | . . . Kinetic 967 | 129 463 375 Thermal 379 | 98 281 . Explosive 338 | . 338 . Electromagnetic . | . . . Impact . | . . . Slashing . | . . . Piercing . | . . . Highest Corruption 1 | . 1 1 Average Corruption 1 | . 1 1 Corruption Purged . | . . . Corruption Blocked . | . . . Effects 13 | . 10 3 Message Errors 3 | . 3 . Matter Fused 3 | . 2 1 Heat Flow Errors 2 | . 1 1 Energy Discharges 2 | . 2 . Parts Rejected 1 | . . 1 Data Loss (minor) 1 | . 1 . Misfires 1 | . 1 . Overload Shots . | . . . Overflow Damage 1 | . 1 . Projectiles . | . . . Explosions 1 | . 1 . Melee . | . . . Knockbacks . | . . . Impact . | . . . Kinetic . | . . . Secondary . | . . . Self-Inflicted Damage 61 | . 61 . Shots 1 | . 1 . Rammed . | . . . Targets Rammed . | . . . Kicked . | . . . Crushed . | . . . Highest Temperature 198 | 45 198 183 Average Temperature 31 | 15 33 72 Received Heat Transfer 125 | . 105 20 Siege Activations . | . . . Martial Activations . | . . . Shielding Activations . | . . . Robots Disrupted . | . . . Combat Hostiles . | . . . Robots Corrupted . | . . . Combat Hostiles . | . . . Parts Fried . | . . . Impact Corruptions . | . . . Robots Melted . | . . . Combat Hostiles . | . . . Parts Melted 1 | . 1 . Heat Transferred 1049 | 370 679 . Parts Sabotaged . | . . . Parts Stolen . | . . . Parts Stripped . | . . . Power Chain Reactions . | . . . Alert | -11 -10 -10 ------- Run | Yrd Mat Min Maximum Alert Level 1 | . 1 . Low Security (%) 93 | 100 90 100 Level 1 6 | . 9 . Level 2 . | . . . Level 3 . | . . . Level 4 . | . . . Level 5 . | . . . High Security . | . . . Max Security . | . . . Peak Influence 239 | 10 239 75 Initial 5 | . 3 5 Average 82 | 1 103 26 Influence Increases 670 | 45 550 75 Destroy 0b10 Robot/C 320 | . 260 60 Destroy 0b10 Robot/NC 80 | 45 30 5 Destroy Leader 56 | . 46 10 Successful Hack 27 | . 27 . Select Force Hacks 30 | . 30 . Disable Machine 60 | . 60 . Destroy Structure 97 | . 97 . Influence Decreases 670 | 40 541 89 Entered New Map 11 | . 2 9 Time Decay 639 | 40 519 80 Lost Part 20 | . 20 . Squads Dispatched 1 | . 1 . Investigation 1 | . 1 . Extermination . | . . . Reinforcement . | . . . Assault . | . . . Garrison . | . . . Intercept . | . . . Searches Triggered . | . . . Construction Impeded . | . . . Haulers Reinforced . | . . . Active Scanning Responses . | . . . Cargo Convoy Interrupts . | . . . Stealth | -11 -10 -10 --------- Run | Yrd Mat Min Distress Signals 1 | . 1 . Communications Jammed . | . . . Distress Signals . | . . . Times Spotted 37 | . 26 11 Peak Tracking Total 4 | . 4 3 Tactical Retreats 1 | . . 1 Traps | -11 -10 -10 ------- Run | Yrd Mat Min Traps Triggered 2 | . 2 . Indirectly . | . . . Trap Hack Attempts . | . . . Triggered . | . . . Disarmed . | . . . Reprogrammed . | . . . Reused . | . . . Traps Extracted . | . . . Installed . | . . . Triggered . | . . . Machines | -11 -10 -10 ---------- Run | Yrd Mat Min Machines Disabled 4 | . 4 . Max in Single Turn 3 | . 3 . Machines Repaired . | . . . Machines Dismantled . | . . . Machines Sabotaged . | . . . Overloaded Fab Kills . | . . . Hacking | -11 -10 -10 --------- Run | Yrd Mat Min Machines Accessed 8 | . 7 1 Terminals 7 | . 6 1 Fabricators . | . . . Repair Stations . | . . . Recycling Units 1 | . 1 . Scanalyzers . | . . . Garrison Access . | . . . Total Hacks 24 | . 23 1 Successful 14 | . 14 . Failed 10 | . 9 1 Catastrophic 1 | . . 1 Database Lockouts . | . . . Manual 19 | . 18 1 Terminals 21 | . 20 1 Fabricators . | . . . Repair Stations . | . . . Recycling Units 3 | . 3 . Scanalyzers . | . . . Garrison Access . | . . . Terminal Hacks 4 | . 4 . Part Schematic 1 | . 1 . Robot Analysis 2 | . 2 . Locate Traps 1 | . 1 . Fabricator Hacks . | . . . Repair Station Hacks . | . . . Recycling Unit Hacks 1 | . 1 . Retrieve Components 1 | . 1 . Scanalyzer . | . . . Garrison Access Hacks . | . . . Unauthorized Hacks 9 | . 9 . Terminals 8 | . 8 . Botnet 2 | . 2 . Operators 1 | . 1 . Skim 5 | . 5 . Fabricators . | . . . Repair Stations . | . . . Recycling Units 1 | . 1 . Tunnel 1 | . 1 . Scanalyzers . | . . . Garrison Access . | . . . Data Cores Recovered . | . . . Used . | . . . Hacking Detections 7 | . 6 1 Full Trace Events . | . . . Feedback Events . | . . . Feedback Blocked . | . . . Robot Schematics Acquired . | . . . Robots Built . | . . . Authchips . | . . . Time . | . . . Total Robot Build Rating . | . . . Part Schematics Acquired 1 | . 1 . Parts Built . | . . . Authchips . | . . . Time . | . . . Total Part Build Rating . | . . . Part Studies Acquired . | . . . Parts Repaired . | . . . Time . | . . . Parts Recycled . | . . . Recycled Matter . | . . . Retrieved Matter . | . . . Retrieved Components 1 | . 1 . Parts Scanalyzed . | . . . Part Schematics Acquired . | . . . Parts Damaged . | . . . Bothacking | -11 -10 -10 ------------ Run | Yrd Mat Min Used RIF Installer . | . . . Robots Hacked . | . . . Non-combat . | . . . Combat . | . . . Robot Hacks Applied . | . . . Relay Couplers Released . | . . . Fabnet Peak Effective % . | . . . Robots Rewired . | . . . Allies Hacked . | . . . Hacks Repelled . | . . . Allies | -11 -10 -10 -------- Run | Yrd Mat Min Total Allies . | . . . Largest Group . | . . . Highest-Rated Group . | . . . Highest-Rated Ally . | . . . Total Orders . | . . . Ally Attacks . | . . . Total Damage . | . . . Kills . | . . . Allies Corrupted . | . . . Allies Melted . | . . . Intel | -11 -10 -10 ------- Run | Yrd Mat Min Active Infowar (turns) 1814 | 130 1465 219 Seismic 1814 | 130 1465 219 Robot Analysis Total 2 | . 2 . Derelict Logs Recovered . | . . . Drone Launches . | . . . Drone Recoveries . | . . . Exploration | -11 -10 -10 ------------- Run | Yrd Mat Min Turns Passed 1905 | 213 1465 227 Spaces Moved 873 | 70 705 98 Core 4 | 4 . . Treads 869 | 66 705 98 Legs . | . . . Wheels . | . . . Hover . | . . . Flight . | . . . Fastest Speed 50 | 50 160 160 Average Speed 159 | 153 160 160 Slowest Speed 160 | 160 160 160 Overloaded Moves . | . . . Propulsion Burnouts . | . . . Robots Hopped . | . . . Potential Cave-ins . | . . . Cave-ins Triggered . | . . . Exploration Rate (%) 40 | 5 92 23 Regions Visited 2 Branch Regions 1 Pre-discovered Areas 3 | . 3 . Known Exits Taken . | . . . Unknown Exits Taken 2 | 1 1 . Scrap Searched . | . . . Spaces Dug 8 | . 8 . Terrain Destroyed 107 | . 107 . Melee . | . . . Projectile 14 | . 14 . AOE 93 | . 93 . Terrain Rammed . | . . . Walls Destroyed . | . . . Machines Disabled . | . . . Actions | -11 -10 -10 --------- Run | Yrd Mat Min Total 1173 | 138 911 124 Wait 148 | 39 106 3 Move 871 | 69 704 98 Hop . | . . . Pick Up 19 | 4 15 . Fast Attach 12 | 8 4 . Attach 2 | . 1 1 Detach . | . . . Swap 13 | . 13 . Drop 9 | 1 8 . Fire 99 | 17 60 22 Melee . | . . . Ram . | . . . Kick . | . . . Crush . | . . . Escape Stasis . | . . . Rewire . | . . . Trap . | . . . Miscellaneous . | . . . Route ------- -11/Scrapyard -10/Materials (discovered 5 exits: [*Mat x3] / *Min x2) -10/Mines History --------- Turn | Location | Event 16 | -11/Scrapyard | Discovered new exit (range 15) 214 | -11/Scrapyard | Entered Materials 315 | -10/Materials | Build established: Mutant 537 | -10/Materials | Discovered new exit (range 4) 631 | -10/Materials | Discovered new exit (range 10) 710 | -10/Materials | Discovered new exit (range 10) 941 | -10/Materials | Discovered new exit (range 9) 1055 | -10/Materials | Learned Storage trap positions 1100 | -10/Materials | Learned location of Recycling (-9) 1135 | -10/Materials | Learned Storage trap positions 1204 | -10/Materials | Learned location of 2 exits from Subcaves 1241 | -10/Materials | Learned 4 Recycling zone layouts 1291 | -10/Materials | Discovered new exit (range 9) 1679 | -10/Materials | Entered Mines 1823 | -10/Mines | Assembled infested the area 1828 | -10/Mines | Assisted by a Guerilla fighting off Assembled 1899 | -10/Mines | Core integrity fell below 50% 1905 | -10/Mines | Core integrity fell below 20% 1906 | -10/Mines | Destroyed by D-53 Grenadier with Mini Grenade Launcher Last Messages --------------- crushing effect. 01848_ T-07 Excavator knocked back. 01849_ T-07 Excavator system terminally corrupted. 01849_ 50-YX1(h): "I'll hold them off! Go on ahead or try to find another way!" 01851_ HV Slug penetrates Wall. 01854_ 50-YX1(h) destroyed. 01859_ as-94413 destroyed. 01872_ as-05132 destroyed. 01872_ Switching to secondary target: as-45144. 01872_ as-45144 destroyed. 01875_ as-77411 destroyed. 01896_ C-45 Heavy ARC bursts open, deploying its payload. 01896_ D-53 Grenadier unfolds itself. 01897_ System corrupted: Lgt. Treads rejected. 01898_ Seismic Detector destroyed. 01900_ Hvy. Assault Rifle destroyed. 01905_ The unstable cave ceiling collapses. Map ----- +----------------------------------------------------+ | ?????????????????????????????????????????????????? | | ?????????????????????????????????????????????????? | | ?????????????????????????????????????????????????? | | ?????????????????????????????????????????????????? | | ?????????????????????????????????????????????????? | | ?????????????????????????????????????????????????? | | ?????????????????????????????????????????????????? | | ?????????????????????????????????????????????????? | | ?????????????????????????????????????????????????? | | ?????????????????????????????????????????????????? | | ?????????????????????????????????????????????????? | | ?????????????????????????????????????????????????? | | ?????????????????????????????????????????????????? | | ?????????????????????????????????????????????????? | | ?????????????????????????????????????????????????? | | ?????????????????????????????????????????????????? | | ?????????????????????????????????????????????????? | | ?????????????????????????????????????????????????? | | ????????????????????????????#????????????????????? | | ??????????????????????????? #????????????????????? | | ??????????????????????##### #????????????????????? | | ?????????????????????## # ##????????#??????????? | | ????????????????????## d ##??? ##?????????? | | ????????????????????# # ????????? | | ????????????????????# d ????????? | | ????????????????????# @ ????????? | | ???????????????????## ## #????????? | | ???????????????????# #??????????????????? | | ???????????????????# ##??????????????????? | | ???????????????????# ##???????????????????? | | ???????????????????## ####????????????????????? | | ????????????????????#### #???????????????????????? | | ???????????????????????# #???????????????????????? | | ???????????????????????# #??#######??????????????? | | ???????????????????????# #??# #??????????????? | | ???????????????????????# #??# """ #####??????????? | | ???????????????????????#*#### """ #??????????? | | ???????????????????????#%!% """ #??????????? | | ???????????????????????#!#### ## #??????????? | | ???????????????????????#=#??# ## #??????????? | | ???????????????????????#!#??######## ##########?? | | ???????????????????????#%#????### #?? | | ???????????????????????#=#??### ######## #?? | | ???????????????????????!*#?## #??????# #?? | | ???????????????????????%%#?# #??????# #?? | | ???????????????????????# #?# #??????# #?? | | ???????????????????????#%#?## #??????# #?? | | ???????????????????????? ???# ##??????# #?? | | ???????????????????????? ???# #####???????# #?? | | ???????????????????????? ???# ##???????????# ### | +----------------------------------------------------+ Best States ------------- Heat Dissipation 25 Energy Generation 12 Energy Capacity 265 Matter Stores 300 Matter Capacity 300 Sight Range 16 Terrain Scan Density 10 Evasion (%) 40 Recoil Reduction 2 Item Schematics ----------------- Cargo Storage Unit | -10/Materials | Hacked Robot Schematics ------------------ None Fabricated ------------ Nothing Repaired ---------- Nothing Studied --------- None Alien Tech Used ----------------- None Achievements -------------- None Challenges ------------ None Game ------ Seed ChipAntimatterMiniperforator Manual? 0 Play Time 00:11:51 Cumulative 364.0 hours Start 2026.02.01 @ 00:20:45 End 2026.02.01 @ 00:31:18 Sessions 1 Manual Loads 0 Difficulty Rogue Special Mode None Game No. 298 Rogue 298 Adventurer 0 Explorer 0 Win Type - Total 2 Types 2/0/0/0/0/0/0/0/0/0 Lore% 62 Gallery% 71 Achievement% 52 Wizard Run 0 Options --------- Layout 1 ASCII 0 Keyboard 0 Movement Mouse Keybinds 0 Fullscreen 1 Font 32/SmallcapsGlow Map View 50x35 Zoom Use 0% Tactical HUD 1 Map Filters NONE Filters NONE Steam 1 RUN: 9d1fa992-5182-4eb8-aa7e-37e50eb94846